[Event "*** SCC Grand Prix: Titled Tuesday Blitz"]
[Site "Chess.com"]
[Date "2020.06.09"]
[Round "4"]
[White "Bulldog167"]
[Black "Nor1lsk"]
[Result "1-0"]
[WhiteElo "2779"]
[BlackElo "2592"]
[TimeControl "180+1"]
[EndTime "9:39:54 PDT"]
[Termination "Bulldog167 won by resignation"]

1. Nf3 {[%clk 0:03:00.9]} 1... g6 {[%clk 0:02:59.3]} 2. e3 {[%clk 0:02:58.4]}
2... Bg7 {[%clk 0:02:59.2]} 3. d4 {[%clk 0:02:59]} 3... c5 {[%clk 0:02:58.8]} 4.
dxc5 {[%clk 0:02:58.9]} 4... Qa5+ {[%clk 0:02:57.1]} 5. Bd2 {[%clk 0:02:59]}
5... Qxc5 {[%clk 0:02:56.9]} 6. Bc3 {[%clk 0:02:58.9]} 6... Nf6 {[%clk
0:02:56.6]} 7. Nbd2 {[%clk 0:02:57]} 7... O-O {[%clk 0:02:56.2]} 8. Be2 {[%clk
0:02:54.9]} 8... d5 {[%clk 0:02:50.9]} 9. O-O {[%clk 0:02:54.5]} 9... Nc6 {[%clk
0:02:49.4]} 10. Nb3 {[%clk 0:02:53.1]} 10... Qb6 {[%clk 0:02:46.8]} 11. a4
{[%clk 0:02:47.7]} 11... Bg4 {[%clk 0:02:43.4]} 12. a5 {[%clk 0:02:47.3]} 12...
Qc7 {[%clk 0:02:40.5]} 13. a6 {[%clk 0:02:45.3]} 13... b6 {[%clk 0:02:34.9]} 14.
Nbd4 {[%clk 0:02:45.6]} 14... Bxf3 {[%clk 0:02:30.1]} 15. Nxf3 {[%clk
0:02:44.6]} 15... e6 {[%clk 0:02:26.1]} 16. Bb5 {[%clk 0:02:42.3]} 16... Ne4
{[%clk 0:02:12.9]} 17. Bxg7 {[%clk 0:02:41.9]} 17... Kxg7 {[%clk 0:02:12.7]} 18.
c3 {[%clk 0:02:40.2]} 18... Nd6 {[%clk 0:01:57.6]} 19. Bxc6 {[%clk 0:02:40.4]}
19... Qxc6 {[%clk 0:01:57.3]} 20. Qd4+ {[%clk 0:02:40.1]} 20... f6 {[%clk
0:01:51.9]} 21. Qb4 {[%clk 0:02:38.4]} 21... Qc5 {[%clk 0:01:37.1]} 22. Nd4
{[%clk 0:02:34.8]} 22... Qxb4 {[%clk 0:01:32.5]} 23. cxb4 {[%clk 0:02:34.8]}
23... Kf7 {[%clk 0:01:32.6]} 24. Rfc1 {[%clk 0:02:32.1]} 24... Rfc8 {[%clk
0:01:29.5]} 25. Rc6 {[%clk 0:02:24.5]} 25... Rxc6 {[%clk 0:01:22.3]} 26. Nxc6
{[%clk 0:02:25.4]} 26... Ke8 {[%clk 0:01:21.9]} 27. Nd4 {[%clk 0:01:59.9]} 27...
Kd7 {[%clk 0:01:20.8]} 28. Rc1 {[%clk 0:01:56.7]} 28... e5 {[%clk 0:01:11.8]}
29. Ne2 {[%clk 0:01:52.3]} 29... Rc8 {[%clk 0:01:07]} 30. Rd1 {[%clk 0:01:50.6]}
30... Ke6 {[%clk 0:01:06]} 31. Nc3 {[%clk 0:01:50.4]} 31... Nc4 {[%clk
0:01:02.6]} 32. Nb5 {[%clk 0:01:39]} 32... Nxb2 {[%clk 0:01:01.5]} 33. Rb1
{[%clk 0:01:37.7]} 33... Nc4 {[%clk 0:00:21.9]} 34. Nxa7 {[%clk 0:01:37.3]}
34... Ra8 {[%clk 0:00:21.9]} 35. Nb5 {[%clk 0:01:37.9]} 35... Kd7 {[%clk
0:00:21.8]} 36. Ra1 {[%clk 0:01:31.2]} 36... Kc6 {[%clk 0:00:20.6]} 37. Nc3
{[%clk 0:01:30.4]} 37... b5 {[%clk 0:00:20.7]} 38. a7 {[%clk 0:01:27.4]} 38...
Nb6 {[%clk 0:00:16.3]} 39. Ra5 {[%clk 0:01:24.6]} 39... Nc4 {[%clk 0:00:09.3]}
40. Ra6+ {[%clk 0:01:18.1]} 40... Kb7 {[%clk 0:00:09.3]} 41. Rxf6 {[%clk
0:01:17.9]} 41... Rxa7 {[%clk 0:00:09.4]} 42. Rf7+ {[%clk 0:01:14.5]} 42... Kb6
{[%clk 0:00:09.6]} 43. Nxd5+ {[%clk 0:01:13.9]} 43... Ka6 {[%clk 0:00:07.9]} 44.
Rf6+ {[%clk 0:01:02.3]} 44... Kb7 {[%clk 0:00:07.8]} 45. g4 {[%clk 0:01:01.9]}
45... Ra1+ {[%clk 0:00:05.1]} 46. Kg2 {[%clk 0:01:02.4]} 46... Ra2 {[%clk
0:00:05.8]} 47. Kg3 {[%clk 0:00:57.3]} 47... Rd2 {[%clk 0:00:05.1]} 48. Nc3
{[%clk 0:00:51.5]} 48... Nd6 {[%clk 0:00:04.9]} 49. Re6 {[%clk 0:00:44.7]} 49...
Rd3 {[%clk 0:00:05]} 50. Ne2 {[%clk 0:00:41]} 50... Nc4 {[%clk 0:00:05]} 51.
Re7+ {[%clk 0:00:38.5]} 51... Kc6 {[%clk 0:00:05.3]} 52. Rxh7 {[%clk 0:00:39.1]}
52... Rb3 {[%clk 0:00:05.9]} 53. Rg7 {[%clk 0:00:37.2]} 53... Rxb4 {[%clk
0:00:06.2]} 54. Rxg6+ {[%clk 0:00:37.9]} 54... Kc5 {[%clk 0:00:06.7]} 55. h4
{[%clk 0:00:35.7]} 55... Rb2 {[%clk 0:00:06.7]} 56. Nc3 {[%clk 0:00:36.1]} 56...
b4 {[%clk 0:00:07.2]} 57. Na4+ {[%clk 0:00:36.6]} 1-0

[Event "*** SCC Grand Prix: Titled Tuesday Blitz"]
[Site "Chess.com"]
[Date "2020.06.09"]
[Round "4"]
[White "tigra"]
[Black "Harry_Rakkel"]
[Result "1-0"]
[WhiteElo "2720"]
[BlackElo "2513"]
[TimeControl "180+1"]
[EndTime "9:39:54 PDT"]
[Termination "tigra won on time"]

1. d4 {[%clk 0:03:00.9]} 1... Nf6 {[%clk 0:02:59.1]} 2. Nf3 {[%clk 0:02:59.8]}
2... d5 {[%clk 0:02:58]} 3. Bf4 {[%clk 0:02:59.8]} 3... e6 {[%clk 0:02:56.5]} 4.
e3 {[%clk 0:03:00.2]} 4... Bd6 {[%clk 0:02:56.2]} 5. Bg3 {[%clk 0:03:00]} 5...
O-O {[%clk 0:02:54.4]} 6. Bd3 {[%clk 0:02:58.3]} 6... b6 {[%clk 0:02:53.7]} 7.
O-O {[%clk 0:02:55.6]} 7... Bb7 {[%clk 0:02:53.4]} 8. c3 {[%clk 0:02:53.2]} 8...
Ne4 {[%clk 0:02:52.3]} 9. Nbd2 {[%clk 0:02:52.6]} 9... f5 {[%clk 0:02:51.8]} 10.
c4 {[%clk 0:02:46.2]} 10... Nxg3 {[%clk 0:02:49.5]} 11. hxg3 {[%clk 0:02:46.2]}
11... c6 {[%clk 0:02:49.5]} 12. Qb1 {[%clk 0:02:41.5]} 12... Nd7 {[%clk
0:02:48.1]} 13. cxd5 {[%clk 0:02:40.3]} 13... cxd5 {[%clk 0:02:46.8]} 14. b4
{[%clk 0:02:37.6]} 14... g5 {[%clk 0:02:42.3]} 15. Qb2 {[%clk 0:02:35]} 15... h5
{[%clk 0:02:41.9]} 16. Bb5 {[%clk 0:02:28.9]} 16... Rf7 {[%clk 0:02:33.5]} 17.
Rfc1 {[%clk 0:02:26]} 17... h4 {[%clk 0:02:25.2]} 18. gxh4 {[%clk 0:02:23.3]}
18... gxh4 {[%clk 0:02:24]} 19. Kf1 {[%clk 0:02:23.6]} 19... Nf6 {[%clk
0:02:20.4]} 20. Ke2 {[%clk 0:02:23.5]} 20... Ne4 {[%clk 0:02:11.9]} 21. Bc6
{[%clk 0:02:14.9]} 21... f4 {[%clk 0:01:06.2]} 22. Bxb7 {[%clk 0:02:12]} 22...
Rxb7 {[%clk 0:01:05.6]} 23. Nxe4 {[%clk 0:02:12.2]} 23... dxe4 {[%clk
0:01:04.2]} 24. Nd2 {[%clk 0:02:12.9]} 24... Rg7 {[%clk 0:00:39.1]} 25. Nxe4
{[%clk 0:02:12.3]} 25... Be7 {[%clk 0:00:38.7]} 26. exf4 {[%clk 0:02:08.5]}
26... Qd5 {[%clk 0:00:36.9]} 27. Ke3 {[%clk 0:02:08.4]} 27... Rf8 {[%clk
0:00:31.1]} 28. g3 {[%clk 0:02:06.9]} 28... hxg3 {[%clk 0:00:27.8]} 29. fxg3
{[%clk 0:02:07.8]} 29... Qf5 {[%clk 0:00:28]} 30. Rf1 {[%clk 0:01:51.3]} 30...
Qh3 {[%clk 0:00:21.1]} 31. Rac1 {[%clk 0:01:47]} 31... Bh4 {[%clk 0:00:19]} 32.
Rf3 {[%clk 0:01:36.9]} 32... Bxg3 {[%clk 0:00:18.5]} 33. Kd3 {[%clk 0:01:36.3]}
33... Qf5 {[%clk 0:00:15.9]} 34. a4 {[%clk 0:01:22.2]} 34... Bxf4 {[%clk
0:00:14]} 35. Rcf1 {[%clk 0:01:22.4]} 35... e5 {[%clk 0:00:14.1]} 36. Qa2+
{[%clk 0:01:20.6]} 36... Rff7 {[%clk 0:00:14.3]} 37. Qd5 {[%clk 0:01:18]} 37...
Rg2 {[%clk 0:00:13.1]} 38. b5 {[%clk 0:01:07.2]} 38... Rd2+ {[%clk 0:00:10.7]}
39. Kc4 {[%clk 0:01:06]} 39... Rxd4+ {[%clk 0:00:10.7]} 40. Qxd4 {[%clk
0:01:05.5]} 40... exd4 {[%clk 0:00:10.8]} 41. Rxf4 {[%clk 0:01:06.2]} 41... Qe6+
{[%clk 0:00:10.1]} 42. Kxd4 {[%clk 0:01:06.2]} 42... Rxf4 {[%clk 0:00:10.4]} 43.
Rxf4 {[%clk 0:01:06.5]} 43... Qb3 {[%clk 0:00:10.6]} 44. Ke5 {[%clk 0:01:06.2]}
44... Kg7 {[%clk 0:00:09.2]} 45. Nd6 {[%clk 0:01:05.6]} 45... Qc3+ {[%clk
0:00:07.5]} 46. Ke6 {[%clk 0:01:04.5]} 46... Qe3+ {[%clk 0:00:06.8]} 47. Re4
{[%clk 0:01:04.3]} 47... Qb3+ {[%clk 0:00:06.5]} 48. Kd7 {[%clk 0:01:04]} 48...
Qc3 {[%clk 0:00:05.4]} 49. Rf4 {[%clk 0:01:00.3]} 49... Kg6 {[%clk 0:00:04.9]}
50. Rg4+ {[%clk 0:00:57.4]} 50... Kh5 {[%clk 0:00:04.3]} 51. Rc4 {[%clk
0:00:57.2]} 51... Qd3 {[%clk 0:00:04]} 52. Kc7 {[%clk 0:00:56.7]} 52... Qd5
{[%clk 0:00:03.9]} 53. Rc6 {[%clk 0:00:49.1]} 53... Qd4 {[%clk 0:00:03.2]} 54.
Nc4 {[%clk 0:00:48.4]} 54... Qg7+ {[%clk 0:00:02.3]} 55. Kb8 {[%clk 0:00:48.4]}
55... Qd7 {[%clk 0:00:01.3]} 56. Rc7 {[%clk 0:00:44.8]} 1-0

[Event "*** SCC Grand Prix: Titled Tuesday Blitz"]
[Site "Chess.com"]
[Date "2020.06.09"]
[Round "4"]
[White "AniJak"]
[Black "GustavoJuarezF"]
[Result "0-1"]
[WhiteElo "2255"]
[BlackElo "1984"]
[TimeControl "180+1"]
[EndTime "9:39:54 PDT"]
[Termination "GustavoJuarezF won by checkmate"]

1. e4 {[%clk 0:03:00.9]} 1... c5 {[%clk 0:02:58]} 2. Nc3 {[%clk 0:03:00]} 2...
Nc6 {[%clk 0:02:57.7]} 3. g3 {[%clk 0:03:00.5]} 3... g6 {[%clk 0:02:57.6]} 4.
Bg2 {[%clk 0:03:01]} 4... Bg7 {[%clk 0:02:57.4]} 5. d3 {[%clk 0:03:01.3]} 5...
d6 {[%clk 0:02:55.7]} 6. Nh3 {[%clk 0:03:00.5]} 6... Nf6 {[%clk 0:02:53.2]} 7.
O-O {[%clk 0:03:00.4]} 7... O-O {[%clk 0:02:53]} 8. f4 {[%clk 0:03:00.3]} 8...
Bg4 {[%clk 0:02:47.5]} 9. Qd2 {[%clk 0:02:58.3]} 9... Bxh3 {[%clk 0:02:45.5]}
10. Bxh3 {[%clk 0:02:57.6]} 10... Nd4 {[%clk 0:02:43.9]} 11. Nd1 {[%clk
0:02:56]} 11... b5 {[%clk 0:02:39.8]} 12. c3 {[%clk 0:02:55.7]} 12... Nc6 {[%clk
0:02:39.2]} 13. Qf2 {[%clk 0:02:53.2]} 13... e6 {[%clk 0:02:38.2]} 14. g4 {[%clk
0:02:48.9]} 14... b4 {[%clk 0:02:35.8]} 15. g5 {[%clk 0:02:42.2]} 15... Nd7
{[%clk 0:02:34.8]} 16. Bg2 {[%clk 0:02:41.3]} 16... bxc3 {[%clk 0:02:28]} 17.
bxc3 {[%clk 0:02:41]} 17... Rc8 {[%clk 0:02:21.7]} 18. f5 {[%clk 0:02:26]} 18...
exf5 {[%clk 0:02:20.1]} 19. exf5 {[%clk 0:02:25.8]} 19... Be5 {[%clk 0:02:05.2]}
20. f6 {[%clk 0:02:20.7]} 20... Nb4 {[%clk 0:01:48.4]} 21. Qh4 {[%clk
0:02:11.7]} 21... Nxd3 {[%clk 0:01:44]} 22. Qh6 {[%clk 0:02:06.8]} 22... Bxf6
{[%clk 0:01:40.4]} 23. gxf6 {[%clk 0:02:05.9]} 23... Nxf6 {[%clk 0:01:40.2]} 24.
Bg5 {[%clk 0:02:05.3]} 24... Ng4 {[%clk 0:01:34.1]} 25. Qh4 {[%clk 0:01:57.1]}
25... Qd7 {[%clk 0:01:29.3]} 26. Bh3 {[%clk 0:01:41.8]} 26... f5 {[%clk
0:01:24.5]} 27. Ne3 {[%clk 0:01:29.1]} 27... h5 {[%clk 0:01:15.8]} 28. Bg2
{[%clk 0:01:22.9]} 28... Nde5 {[%clk 0:01:01.5]} 29. Bd5+ {[%clk 0:01:20.8]}
29... Kh7 {[%clk 0:01:00.5]} 30. h3 {[%clk 0:01:08.1]} 30... Nxe3 {[%clk
0:00:59.2]} 31. Bxe3 {[%clk 0:01:09]} 31... Rb8 {[%clk 0:00:32.8]} 32. Qf4
{[%clk 0:01:04.9]} 32... Qg7 {[%clk 0:00:31.1]} 33. Rad1 {[%clk 0:00:56.2]}
33... Rb2 {[%clk 0:00:29.4]} 34. Bg2 {[%clk 0:00:45.1]} 34... Rd8 {[%clk
0:00:24.2]} 35. Bxc5 {[%clk 0:00:42.4]} 35... dxc5 {[%clk 0:00:19.2]} 36. Rxd8
{[%clk 0:00:41.3]} 36... c4 {[%clk 0:00:15.7]} 37. Re8 {[%clk 0:00:23.3]} 37...
Nd3 {[%clk 0:00:13.2]} 38. Qxc4 {[%clk 0:00:20.7]} 38... Rxg2+ {[%clk
0:00:08.9]} 39. Kxg2 {[%clk 0:00:18.3]} 39... Qb7+ {[%clk 0:00:09.6]} 40. Rf3
{[%clk 0:00:16.8]} 40... Qb2+ {[%clk 0:00:06.4]} 41. Kg3 {[%clk 0:00:12.1]}
41... f4+ {[%clk 0:00:04.5]} 42. Kh4 {[%clk 0:00:11.6]} 42... g5+ {[%clk
0:00:02.8]} 43. Kxg5 {[%clk 0:00:10.9]} 43... Qg2+ {[%clk 0:00:02.8]} 44. Kf5
{[%clk 0:00:07.9]} 44... Qg6# {[%clk 0:00:02.2]} 0-1

[Event "*** SCC Grand Prix: Titled Tuesday Blitz"]
[Site "Chess.com"]
[Date "2020.06.09"]
[Round "4"]
[White "arminmusovic"]
[Black "platy3"]
[Result "0-1"]
[WhiteElo "2537"]
[BlackElo "2740"]
[TimeControl "180+1"]
[EndTime "9:39:55 PDT"]
[Termination "platy3 won by checkmate"]

1. a3 {[%clk 0:03:00.9]} 1... e5 {[%clk 0:02:59.1]} 2. Nc3 {[%clk 0:03:01.8]}
2... Nf6 {[%clk 0:02:51.7]} 3. d4 {[%clk 0:03:01.9]} 3... e4 {[%clk 0:02:47.3]}
4. Bg5 {[%clk 0:03:01.4]} 4... d5 {[%clk 0:02:36.8]} 5. Bxf6 {[%clk 0:03:01]}
5... gxf6 {[%clk 0:02:37.5]} 6. e3 {[%clk 0:03:01.6]} 6... f5 {[%clk 0:02:34]}
7. Qh5 {[%clk 0:03:00.5]} 7... c6 {[%clk 0:02:27.5]} 8. Nge2 {[%clk 0:02:58.9]}
8... h6 {[%clk 0:02:23.5]} 9. Nf4 {[%clk 0:02:49.1]} 9... Qg5 {[%clk 0:02:19.9]}
10. O-O-O {[%clk 0:02:43.1]} 10... Bd6 {[%clk 0:02:16.4]} 11. Nce2 {[%clk
0:02:39.6]} 11... Nd7 {[%clk 0:02:14.8]} 12. h4 {[%clk 0:02:39.1]} 12... Qg7
{[%clk 0:02:04.8]} 13. Ng3 {[%clk 0:02:30.9]} 13... Nf6 {[%clk 0:02:03.2]} 14.
Qe2 {[%clk 0:02:29.9]} 14... Bd7 {[%clk 0:01:43.8]} 15. Nfh5 {[%clk 0:02:26.9]}
15... Nxh5 {[%clk 0:01:38.6]} 16. Nxh5 {[%clk 0:02:27.2]} 16... Qg6 {[%clk
0:01:38.8]} 17. g3 {[%clk 0:02:26.1]} 17... f4 {[%clk 0:01:24.3]} 18. Nxf4
{[%clk 0:01:35.6]} 18... Bxf4 {[%clk 0:01:22.2]} 19. exf4 {[%clk 0:01:30.9]}
19... Bg4 {[%clk 0:01:22.3]} 20. Qe3 {[%clk 0:01:30.7]} 20... Bxd1 {[%clk
0:01:22]} 21. Kxd1 {[%clk 0:01:31.6]} 21... O-O-O {[%clk 0:01:20.6]} 22. Kc1
{[%clk 0:01:14.4]} 22... Kb8 {[%clk 0:01:12.8]} 23. Kb1 {[%clk 0:01:12.3]} 23...
c5 {[%clk 0:01:11.9]} 24. dxc5 {[%clk 0:01:06.1]} 24... d4 {[%clk 0:01:06.4]}
25. Qb3 {[%clk 0:01:05.6]} 25... d3 {[%clk 0:01:05]} 26. cxd3 {[%clk 0:01:05.9]}
26... exd3 {[%clk 0:01:02.7]} 27. Bg2 {[%clk 0:01:03.9]} 27... d2+ {[%clk
0:00:36.6]} 28. Ka1 {[%clk 0:01:04.3]} 28... Qa6 {[%clk 0:00:30.8]} 29. Rd1
{[%clk 0:00:45.9]} 29... Rhe8 {[%clk 0:00:26.7]} 30. c6 {[%clk 0:00:42.6]} 30...
Re1 {[%clk 0:00:21.5]} 31. c7+ {[%clk 0:00:31.2]} 31... Kxc7 {[%clk 0:00:16.8]}
32. Qc3+ {[%clk 0:00:31.5]} 32... Qc6 {[%clk 0:00:07.5]} 33. Qa5+ {[%clk
0:00:19.9]} 33... Qb6 {[%clk 0:00:06.1]} 34. Qc3+ {[%clk 0:00:18.4]} 34... Kb8
{[%clk 0:00:05.4]} 35. Rxe1 {[%clk 0:00:18.1]} 35... d1=Q+ {[%clk 0:00:01.8]}
36. Rxd1 {[%clk 0:00:17]} 36... Rxd1+ {[%clk 0:00:02.7]} 37. Ka2 {[%clk
0:00:17.6]} 37... Qe6+ {[%clk 0:00:03.3]} 38. b3 {[%clk 0:00:06.1]} 38... Qe2+
{[%clk 0:00:02.8]} 39. Qb2 {[%clk 0:00:06.7]} 39... Rd2 {[%clk 0:00:03.7]} 40.
Qxd2 {[%clk 0:00:06.6]} 40... Qxd2+ {[%clk 0:00:04.4]} 41. Ka1 {[%clk
0:00:07.5]} 41... Qe1+ {[%clk 0:00:04.9]} 42. Kb2 {[%clk 0:00:07.4]} 42... Qxf2+
{[%clk 0:00:05.8]} 43. Kc3 {[%clk 0:00:08.3]} 43... Qxg2 {[%clk 0:00:06.7]} 44.
Kc4 {[%clk 0:00:09.2]} 44... Qxg3 {[%clk 0:00:07.4]} 45. a4 {[%clk 0:00:10.1]}
45... Qxf4+ {[%clk 0:00:07.9]} 46. Kb5 {[%clk 0:00:11]} 46... Qxh4 {[%clk
0:00:08.6]} 47. b4 {[%clk 0:00:11.9]} 47... a6+ {[%clk 0:00:08.4]} 48. Kb6
{[%clk 0:00:12]} 48... Qxb4# {[%clk 0:00:07.5]} 0-1

[Event "*** SCC Grand Prix: Titled Tuesday Blitz"]
[Site "Chess.com"]
[Date "2020.06.09"]
[Round "4"]
[White "kushagramohan"]
[Black "Berardino"]
[Result "1-0"]
[WhiteElo "2728"]
[BlackElo "2522"]
[TimeControl "180+1"]
[EndTime "9:39:55 PDT"]
[Termination "kushagramohan won on time"]

1. e4 {[%clk 0:03:00.9]} 1... c5 {[%clk 0:02:59.6]} 2. Nf3 {[%clk 0:03:00.6]}
2... b6 {[%clk 0:02:59.8]} 3. d4 {[%clk 0:02:59.8]} 3... cxd4 {[%clk 0:03:00.7]}
4. Nxd4 {[%clk 0:03:00.7]} 4... Bb7 {[%clk 0:03:01.3]} 5. Nc3 {[%clk 0:03:01.4]}
5... Nf6 {[%clk 0:03:01.6]} 6. f3 {[%clk 0:03:01.3]} 6... e6 {[%clk 0:03:01.3]}
7. Be3 {[%clk 0:03:01.2]} 7... Bc5 {[%clk 0:02:59.4]} 8. Qd2 {[%clk 0:03:01.2]}
8... O-O {[%clk 0:02:58.5]} 9. O-O-O {[%clk 0:02:59.5]} 9... d5 {[%clk
0:02:58.6]} 10. e5 {[%clk 0:02:56.7]} 10... Nfd7 {[%clk 0:02:59.1]} 11. f4
{[%clk 0:02:57.1]} 11... Nc6 {[%clk 0:02:40.2]} 12. Nf3 {[%clk 0:02:52.7]} 12...
Qe7 {[%clk 0:02:34.2]} 13. Kb1 {[%clk 0:02:36.4]} 13... f6 {[%clk 0:02:22.9]}
14. exf6 {[%clk 0:02:35.5]} 14... Qxf6 {[%clk 0:02:10.5]} 15. Bb5 {[%clk
0:02:04.6]} 15... a6 {[%clk 0:02:01.6]} 16. Bxc6 {[%clk 0:02:04.2]} 16... Bxc6
{[%clk 0:02:02.5]} 17. Rhe1 {[%clk 0:02:02.1]} 17... Rae8 {[%clk 0:01:59.5]} 18.
g3 {[%clk 0:01:57.4]} 18... Bb7 {[%clk 0:01:38]} 19. Bd4 {[%clk 0:01:51.2]}
19... Qg6 {[%clk 0:01:26.3]} 20. Ne5 {[%clk 0:01:37.6]} 20... Nxe5 {[%clk
0:01:25.8]} 21. Rxe5 {[%clk 0:01:37.1]} 21... h6 {[%clk 0:01:21.1]} 22. Rde1
{[%clk 0:01:35.2]} 22... Bc6 {[%clk 0:01:09.7]} 23. a3 {[%clk 0:01:29.3]} 23...
Kh7 {[%clk 0:01:05.6]} 24. Qe3 {[%clk 0:01:26.2]} 24... Bd6 {[%clk 0:00:45.5]}
25. Rxe6 {[%clk 0:01:20]} 25... Qf5 {[%clk 0:00:33.3]} 26. Rxd6 {[%clk
0:00:49.6]} 26... Rxe3 {[%clk 0:00:32.3]} 27. Rxe3 {[%clk 0:00:50.5]} 27... Be8
{[%clk 0:00:17.8]} 28. Rxb6 {[%clk 0:00:20.8]} 28... Bg6 {[%clk 0:00:17.3]} 29.
Re2 {[%clk 0:00:20.9]} 29... Rf7 {[%clk 0:00:11.5]} 30. Rxa6 {[%clk 0:00:19.9]}
30... Rc7 {[%clk 0:00:11.1]} 31. Rd6 {[%clk 0:00:19.2]} 31... Qg4 {[%clk
0:00:09.7]} 32. Rd2 {[%clk 0:00:18.5]} 32... Qf3 {[%clk 0:00:09.1]} 33. Ka2
{[%clk 0:00:16.9]} 33... Be4 {[%clk 0:00:08.6]} 34. a4 {[%clk 0:00:14.8]} 34...
Rc4 {[%clk 0:00:08.1]} 35. a5 {[%clk 0:00:13.8]} 35... Qf1 {[%clk 0:00:07.5]}
36. a6 {[%clk 0:00:13.1]} 36... Rc7 {[%clk 0:00:06.7]} 37. a7 {[%clk 0:00:12.5]}
37... Rc8 {[%clk 0:00:03.3]} 38. Rd7 {[%clk 0:00:09.6]} 38... Qc4+ {[%clk
0:00:03.2]} 39. Kb1 {[%clk 0:00:09.3]} 39... Qf1+ {[%clk 0:00:02.7]} 40. Rd1
{[%clk 0:00:09.7]} 40... Qa6 {[%clk 0:00:02.7]} 41. Rxg7+ {[%clk 0:00:10]} 41...
Kh8 {[%clk 0:00:02.1]} 42. Rg6+ {[%clk 0:00:09.5]} 1-0

[Event "*** SCC Grand Prix: Titled Tuesday Blitz"]
[Site "Chess.com"]
[Date "2020.06.09"]
[Round "4"]
[White "rugbyclub"]
[Black "2007checkmate"]
[Result "0-1"]
[WhiteElo "2114"]
[BlackElo "2410"]
[TimeControl "180+1"]
[EndTime "9:39:55 PDT"]
[Termination "2007checkmate won on time"]

1. c4 {[%clk 0:02:50]} 1... e5 {[%clk 0:02:59.4]} 2. Nc3 {[%clk 0:02:49.2]} 2...
Nc6 {[%clk 0:02:59.8]} 3. Nf3 {[%clk 0:02:47.8]} 3... g6 {[%clk 0:03:00]} 4. d4
{[%clk 0:02:46.5]} 4... Bg7 {[%clk 0:02:59.7]} 5. dxe5 {[%clk 0:02:26.9]} 5...
Nxe5 {[%clk 0:03:00.6]} 6. Nxe5 {[%clk 0:02:24.7]} 6... Bxe5 {[%clk 0:03:01.5]}
7. g3 {[%clk 0:02:22.9]} 7... d6 {[%clk 0:02:59.8]} 8. Bg2 {[%clk 0:02:22.6]}
8... Ne7 {[%clk 0:02:53.4]} 9. O-O {[%clk 0:02:21.9]} 9... O-O {[%clk
0:02:53.4]} 10. Qd2 {[%clk 0:02:19.1]} 10... Nc6 {[%clk 0:02:47.5]} 11. b3
{[%clk 0:02:17.6]} 11... a5 {[%clk 0:02:35.3]} 12. Bb2 {[%clk 0:02:15]} 12...
Bf5 {[%clk 0:02:26.4]} 13. Rac1 {[%clk 0:02:12.7]} 13... Re8 {[%clk 0:02:22.2]}
14. e3 {[%clk 0:02:10]} 14... Bh8 {[%clk 0:02:12.7]} 15. Nd5 {[%clk 0:02:00.3]}
15... Ne5 {[%clk 0:02:04.1]} 16. f4 {[%clk 0:01:57.2]} 16... Nd7 {[%clk
0:01:39.3]} 17. Bxh8 {[%clk 0:01:35.2]} 17... Kxh8 {[%clk 0:01:40.2]} 18. e4
{[%clk 0:01:33.5]} 18... Be6 {[%clk 0:01:31.6]} 19. Qd4+ {[%clk 0:01:29.4]}
19... Kg8 {[%clk 0:01:22.6]} 20. Nc3 {[%clk 0:01:13.7]} 20... Qf6 {[%clk
0:01:20.9]} 21. Qd2 {[%clk 0:01:10.2]} 21... Nc5 {[%clk 0:01:17]} 22. Rce1
{[%clk 0:01:05.6]} 22... Qg7 {[%clk 0:01:05.8]} 23. f5 {[%clk 0:00:55.4]} 23...
Bd7 {[%clk 0:01:06.2]} 24. Nd5 {[%clk 0:00:55.3]} 24... Na6 {[%clk 0:00:44.3]}
25. f6 {[%clk 0:00:46.5]} 25... Qf8 {[%clk 0:00:44.3]} 26. Rf4 {[%clk
0:00:30.1]} 26... c6 {[%clk 0:00:35.1]} 27. Ne7+ {[%clk 0:00:29]} 27... Rxe7
{[%clk 0:00:35.5]} 28. fxe7 {[%clk 0:00:28.4]} 28... Qxe7 {[%clk 0:00:36.4]} 29.
Rd1 {[%clk 0:00:28.2]} 29... Be6 {[%clk 0:00:15.8]} 30. Qxd6 {[%clk 0:00:26.3]}
30... Qe8 {[%clk 0:00:16.4]} 31. e5 {[%clk 0:00:21.6]} 31... a4 {[%clk
0:00:16.3]} 32. b4 {[%clk 0:00:17.8]} 32... Nb8 {[%clk 0:00:13.5]} 33. a3 {[%clk
0:00:16.8]} 33... Nd7 {[%clk 0:00:13.7]} 34. c5 {[%clk 0:00:16]} 34... Nf8
{[%clk 0:00:13]} 35. h4 {[%clk 0:00:14.3]} 35... Bb3 {[%clk 0:00:13.2]} 36. Rd2
{[%clk 0:00:12.9]} 36... Ne6 {[%clk 0:00:13.7]} 37. Rf6 {[%clk 0:00:10.6]} 37...
Rd8 {[%clk 0:00:13.4]} 38. Rxe6 {[%clk 0:00:07.4]} 38... Qxe6 {[%clk 0:00:10.4]}
39. Qxe6 {[%clk 0:00:05.3]} 39... Rxd2 {[%clk 0:00:08.2]} 40. Qe8+ {[%clk
0:00:04.7]} 40... Kg7 {[%clk 0:00:08]} 41. Qe7 {[%clk 0:00:04.2]} 41... Rd1+
{[%clk 0:00:08.1]} 42. Kh2 {[%clk 0:00:04.1]} 42... Rd2 {[%clk 0:00:09]} 43. Kh3
{[%clk 0:00:04.4]} 43... Be6+ {[%clk 0:00:08.4]} 44. g4 {[%clk 0:00:02.9]} 44...
Rd3+ {[%clk 0:00:07.9]} 45. Kh2 {[%clk 0:00:03.2]} 45... Rd2 {[%clk 0:00:07.6]}
0-1